Workbook

Sheet 2018-2019对比表 (hidden)
A2: 2018-2019年公开单位对比表
A4: 新单位编码 | B4: 序号 | C4: 2018年预算单位-旧 | D4: 涉改部门 | E4: 2019公开使用名称 | F4: 业务处室 | G4: 预算单位级次 | H4: 专员办确认纳入公开 | I4: 备注
A5: 100001 | B5: 1 | C5: 重庆市人民代表大会常务委员会办公厅 | E5: 重庆市人民代表大会常务委员会办公厅 | F5: 行政政法处 | G5: 一级
A6: 102001 | B6: 2 | C6: 重庆市人民政府办公厅 | E6: 重庆市人民政府办公厅 | F6: 行政政法处 | G6: 一级
A7: 101001 | B7: 3 | C7: 中国人民政治协商会议重庆市委员会办公厅 | E7: 中国人民政治协商会议重庆市委员会办公厅 | F7: 行政政法处 | G7: 一级
A8: 146001 | B8: 4 | C8: （原中国共产党重庆市纪律检查委员会） | D8: 改 | E8: 中共重庆市纪律检查委员会重庆市监察委员会机关（原中共重庆市纪律检查委员会） | F8: 行政政法处 | G8: 一级
A9: 147001 | B9: 5 | C9: 中共重庆市委组织部 | E9: 中共重庆市委组织部 | F9: 行政政法处 | G9: 一级
A10: 148001 | B10: 6 | C10: 中共重庆市委宣传部 | E10: 中共重庆市委宣传部 | F10: 教科文处 | G10: 一级
A11: 149001 | B11: 7 | C11: 中共重庆市委统战部 | E11: 中共重庆市委统战部 | F11: 行政政法处 | G11: 一级
A12: 150001 | B12: 8 | C12: 中国共产党重庆市委员会政法委员会 | E12: 中国共产党重庆市委员会政法委员会 | F12: 行政政法处 | G12: 一级
A13: 154001 | B13: 9 | C13: 中共重庆市委研究室 | E13: 中共重庆市委研究室 | F13: 行政政法处 | G13: 一级
A14: 153001 | B14: 10 | C14: 重庆市机构编制委员会办公室 | E14: 重庆市机构编制委员会办公室 | F14: 行政政法处 | G14: 一级
A15: 151001 | B15: 11 | C15: 中共重庆市直属机关工作委员会 | E15: 中共重庆市直属机关工作委员会 | F15: 行政政法处 | G15: 一级
A16: 155001 | B16: 12 | C16: （原中共重庆市委、重庆市人民政府信访办公室） | D16: 改 | E16: 重庆市信访办公室（原中共重庆市委、重庆市人民政府信访办公室） | F16: 行政政法处 | G16: 一级
A17: 335001 | B17: 13 | C17: 中共重庆市委老干部局 | E17: 中共重庆市委老干部局 | F17: 社保处 | G17: 一级
A18: 400001 | B18: 14 | C18: 重庆市发展和改革委员会 | E18: 重庆市发展和改革委员会 | F18: 经建处 | G18: 一级
A19: 105001 | B19: 15 | C19: 重庆市财政局 | E19: 重庆市财政局 | F19: 行政政法处 | G19: 一级
A20: 103001 | B20: 16 | C20: 重庆市经济和信息化委员会 | E20: 重庆市经济和信息化委员会 | F20: 产业发展处 | G20: 一级
A21: 250001 | B21: 17 | C21: 重庆市教育委员会 | E21: 重庆市教育委员会 | F21: 教科文处 | G21: 一级
A22: 254001 | B22: 18 | C22: （原重庆市科学技术委员会） | D22: 改 | E22: 重庆市科学技术局（原重庆市科学技术委员会） | F22: 教科文处 | G22: 一级
A23: 403001 | B23: 19 | C23: （原重庆市城乡建设委员会） | D23: 改 | E23: 重庆市住房和城乡建设委员会（原重庆市城乡建设委员会） | F23: 经建处 | G23: 一级
A24: 411001 | B24: 20 | C24: （原重庆市交通委员会） | D24: 改 | E24: 重庆市交通局（原重庆市交通委员会） | F24: 经建处 | G24: 一级
A25: 306001 | B25: 21 | C25: （原重庆市农业委员会） | D25: 改 | E25: 重庆市农业农村委员会（原重庆市农业委员会） | F25: 农业处 | G25: 一级
A26: 104001 | B26: 22 | C26: 重庆市商业委员会 | E26: 重庆市商务委员会 | F26: 产业发展处 | G26: 一级
A27: 157001 | B27: 23 | C27: 重庆市公安局 | E27: 重庆市公安局 | F27: 行政政法处 | G27: 一级
A28: 332001 | B28: 24 | C28: 重庆市民政局 | E28: 重庆市民政局 | F28: 社保处 | G28: 一级
A29: 169001 | B29: 25 | C29: 重庆市司法局 | E29: 重庆市司法局 | F29: 行政政法处 | G29: 一级
A30: 334001 | B30: 26 | C30: 重庆市人力资源和社会保障局 | E30: 重庆市人力资源和社会保障局 | F30: 社保处 | G30: 一级
A31: 410001 | B31: 27 | C31: （原重庆市国土资源和房屋管理局） | D31: 改 | E31: 重庆市住房和城乡建设委员会（原重庆市国土资源和房屋管理局） | F31: 经建处 | G31: 一级
A32: 414001 | B32: 28 | C32: （原重庆市环境保护局） | D32: 改 | E32: 重庆市生态环境局（原重庆市环境保护局） | F32: 经建处 | G32: 一级
A33: 416001 | B33: 29 | C33: （原重庆市规划局） | D33: 改 | E33: 重庆市规划和自然资源局（原重庆市规划局） | F33: 经建处 | G33: 一级
A34: 409001 | B34: 30 | C34: （原重庆市城市管理委员会） | D34: 改 | E34: 重庆市城市管理局（原重庆市城市管理委员会） | F34: 公用事业处 | G34: 一级
A35: 307001 | B35: 31 | C35: 重庆市水利局 | E35: 重庆市水利局 | F35: 农业处 | G35: 一级
A36: 257001 | B36: 32 | C36: （原重庆市文化委员会） | D36: 改 | E36: 重庆市文化和旅游发展委员会（原重庆市文化委员会） | F36: 教科文处 | G36: 一级
A37: 330001 | B37: 33 | C37: （原重庆市卫生和计划生育委员会） | D37: 改 | E37: 重庆市卫生健康委员会（原重庆市卫生和计划生育委员会） | F37: 社保处 | G37: 一级
A38: 107001 | B38: 34 | C38: 重庆市审计局 | E38: 重庆市审计局 | F38: 行政政法处 | G38: 一级
A39: 193001 | B39: 35 | C39: （原重庆市移民局） | D39: 改 | E39: 重庆市水利局（原重庆市移民局） | F39: 农业处 | G39: 一级 | I39: 2019年不再保留？
A40: 114001 | B40: 36 | C40: 重庆市民族宗教事务委员会 | E40: 重庆市民族宗教事务委员会 | F40: 行政政法处 | G40: 一级
A41: 152001 | B41: 37 | C41: 重庆市国有资产监督管理委员会 | E41: 重庆市国有资产监督管理委员会 | F41: 产业发展处 | G41: 一级
C42: 重庆市地方税务局 | E42: 重庆市税务局 | F42: 行政政法处 | I42: 2019年中央单位不纳入公开
A43: 109001 | B43: 38 | C43: （原重庆市工商行政管理局） | D43: 改 | E43: 重庆市市场监督管理局（原重庆市工商行政管理局） | F43: 行政政法处 | G43: 一级
A44: 110001 | B44: 39 | C44: （原重庆市质量技术监督局） | D44: 改 | E44: 重庆市市场监督管理局（原重庆市质量技术监督局） | F44: 行政政法处 | G44: 一级
A45: 262001 | B45: 40 | C45: 重庆市体育局 | E45: 重庆市体育局 | F45: 教科文处 | G45: 一级
A46: 182001 | B46: 41 | C46: （原重庆市安全生产监督管理局） | D46: 改 | E46: 重庆市应急管理局（原重庆市安全生产监督管理局） | F46: 产业发展处 | G46: 一级 | I46: 2019年归口经建处
A47: 111001 | B47: 42 | C47: 重庆市统计局 | E47: 重庆市统计局 | F47: 行政政法处 | G47: 一级
A48: 309001 | B48: 43 | C48: 重庆市林业局 | E48: 重庆市林业局 | F48: 农业处 | G48: 一级
A49: 115001 | B49: 44 | C49: （原重庆市旅游委） | D49: 改 | E49: 重庆市文化和旅游发展委员会（原重庆市旅游委） | F49: 产业发展处 | G49: 一级 | I49: 2019年归口教科文处
A50: 305001 | B50: 45 | C50: 重庆市扶贫开发办公室 | E50: 重庆市扶贫开发办公室 | F50: 农业处 | G50: 一级
A51: 119001 | B51: 46 | C51: （原重庆市政府法制办公室） | D51: 改 | E51: 重庆市司法局（原重庆市政府法制办公室） | F51: 行政政法处 | G51: 一级 | I51: 2019年不再保留？
A52: 190001 | B52: 47 | C52: 重庆市人民政府研究室 | E52: 重庆市人民政府研究室 | F52: 行政政法处 | G52: 一级
A53: 112001 | B53: 48 | C53: 重庆市机关事务管理局 | E53: 重庆市机关事务管理局 | F53: 行政政法处 | G53: 一级
A54: 189001 | B54: 49 | C54: 重庆市金融工作办公室 | D54: 改 | E54: 重庆市地方金融监督管理局（原重庆市金融工作办公室） | F54: 金融处 | G54: 一级
A55: 118001 | B55: 50 | C55: （原重庆市人民政府外事侨务办公室） | D55: 改 | E55: 重庆市政府外事办公室（原重庆市人民政府外事侨务办公室） | F55: 行政政法处 | G55: 一级
A56: 479001 | B56: 51 | C56: （原重庆市煤炭工业管理局） | D56: 改 | E56: 重庆市能源局（原重庆市煤炭工业管理局） | F56: 产业发展处 | G56: 一级 | I56: 2019年归口经建处
A57: 468001 | B57: 52 | C57: 重庆市科能高级技工学校 | E57: 重庆市科能高级技工学校 | F57: 产业发展处 | G57: 一级
A58: 475001 | B58: 53 | C58: 重庆市矿业工程学校 | E58: 重庆市矿业工程学校 | F58: 产业发展处 | G58: 一级
A59: 476001 | B59: 54 | C59: 重庆煤炭职业病医院 | E59: 重庆煤炭职业病医院 | F59: 产业发展处 | G59: 一级
A60: 303001 | B60: 55 | C60: （原重庆市农业综合开发办公室） | D60: 改 | E60: 重庆市农业农村委员会（原重庆市农业综合开发办公室） | F60: 农业处 | G60: 一级
A61: 337001 | B61: 56 | C61: 重庆市公务员管理局 | D61: 改 | E61: 重庆市公务员管理局 | F61: 社保处 | G61: 一级 | I61: 2019年不再单设？
A62: 331001 | B62: 57 | C62: （原重庆市食品药品监督管理局） | D62: 改 | E62: 重庆市市场监督管理局（原重庆市食品药品监督管理局） | F62: 社保处 | G62: 一级 | I62: 2019年归口行政政法处
A63: 338001 | B63: 58 | C63: 重庆市社会保险局 | E63: 重庆市社会保险局 | F63: 社保处 | G63: 一级
A64: 273001 | B64: 59 | C64: 重庆市文物局 | E64: 重庆市文物局 | F64: 教科文处 | G64: 一级
C65: 重庆市园林局 | E65: 重庆市城市管理局（原重庆市城市管理委员会） | F65: 公用事业处 | I65: 2019年合并到市城市局公开
A66: 265001 | B66: 60 | C66: 重庆市档案局 | E66: 重庆市档案局 | F66: 教科文处 | G66: 一级
A67: 127001 | B67: 61 | C67: 重庆市人民政府驻北京办事处 | E67: 重庆市人民政府驻北京办事处 | F67: 行政政法处 | G67: 一级
A68: 128001 | B68: 62 | C68: 重庆市人民政府驻上海办事处 | E68: 重庆市人民政府驻上海办事处 | F68: 行政政法处 | G68: 一级
A69: 129001 | B69: 63 | C69: 重庆市人民政府驻广东办事处 | E69: 重庆市人民政府驻广东办事处 | F69: 行政政法处 | G69: 一级
A70: 132001 | B70: 64 | C70: 重庆市人民政府驻四川办事处 | E70: 重庆市人民政府驻四川办事处 | F70: 行政政法处 | G70: 一级
A71: 301001 | B71: 65 | C71: 重庆市供销合作总社 | E71: 重庆市供销合作总社 | F71: 农业处 | G71: 一级
A72: 269001 | B72: 66 | C72: 重庆市文化市场行政执法总队 | E72: 重庆市文化市场行政执法总队 | F72: 教科文处 | G72: 一级
A73: 164001 | B73: 67 | C73: 重庆市高级人民法院 | E73: 重庆市高级人民法院 | F73: 行政政法处 | G73: 一级
A74: 165001 | B74: 68 | C74: 重庆市第一中级人民法院 | E74: 重庆市第一中级人民法院 | F74: 行政政法处 | G74: 一级
A75: 166001 | B75: 69 | C75: 重庆市第二中级人民法院 | E75: 重庆市第二中级人民法院 | F75: 行政政法处 | G75: 一级
A76: 167001 | B76: 70 | C76: 重庆市第三中级人民法院 | E76: 重庆市第三中级人民法院 | F76: 行政政法处 | G76: 一级
A77: 168001 | B77: 71 | C77: 重庆市第四中级人民法院 | E77: 重庆市第四中级人民法院 | F77: 行政政法处 | G77: 一级
A78: 187001 | B78: 72 | C78: 重庆市第五中级人民法院 | E78: 重庆市第五中级人民法院 | F78: 行政政法处 | G78: 一级
A79: 192001 | B79: 73 | C79: 重庆市铁路运输法院 | E79: 重庆市铁路运输法院 | F79: 行政政法处 | G79: 一级
A80: 159001 | B80: 74 | C80: 重庆市人民检察院 | E80: 重庆市人民检察院 | F80: 行政政法处 | G80: 一级
A81: 160001 | B81: 75 | C81: 重庆市人民检察院第一分院 | E81: 重庆市人民检察院第一分院 | F81: 行政政法处 | G81: 一级
A82: 161001 | B82: 76 | C82: 重庆市人民检察院第二分院 | E82: 重庆市人民检察院第二分院 | F82: 行政政法处 | G82: 一级
A83: 162001 | B83: 77 | C83: 重庆市人民检察院第三分院 | E83: 重庆市人民检察院第三分院 | F83: 行政政法处 | G83: 一级
A84: 163001 | B84: 78 | C84: 重庆市人民检察院第四分院 | E84: 重庆市人民检察院第四分院 | F84: 行政政法处 | G84: 一级
A85: 186001 | B85: 79 | C85: 重庆市人民检察院第五分院 | E85: 重庆市人民检察院第五分院 | F85: 行政政法处 | G85: 一级
A86: 191001 | B86: 80 | C86: 重庆市铁路运输检察院 | E86: 重庆市铁路运输检察院 | F86: 行政政法处 | G86: 一级
A87: 137001 | B87: 81 | C87: 中国国民党革命委员会重庆市委员会 | E87: 中国国民党革命委员会重庆市委员会 | F87: 行政政法处 | G87: 一级
A88: 138001 | B88: 82 | C88: 中国民主同盟重庆市委员会 | E88: 中国民主同盟重庆市委员会 | F88: 行政政法处 | G88: 一级
A89: 139001 | B89: 83 | C89: 中国民主建国会重庆市委员会 | E89: 中国民主建国会重庆市委员会 | F89: 行政政法处 | G89: 一级
A90: 140001 | B90: 84 | C90: 中国民主促进会重庆市委员会 | E90: 中国民主促进会重庆市委员会 | F90: 行政政法处 | G90: 一级
A91: 141001 | B91: 85 | C91: 中国农工民主党重庆市委员会 | E91: 中国农工民主党重庆市委员会 | F91: 行政政法处 | G91: 一级
A92: 142001 | B92: 86 | C92: 中国致公党重庆市委员会 | E92: 中国致公党重庆市委员会 | F92: 行政政法处 | G92: 一级
A93: 143001 | B93: 87 | C93: 九三学社重庆市委员会 | E93: 九三学社重庆市委员会 | F93: 行政政法处 | G93: 一级
A94: 134001 | B94: 88 | C94: 台湾民主自治同盟重庆市委员会 | E94: 台湾民主自治同盟重庆市委员会 | F94: 行政政法处 | G94: 一级
A95: 133001 | B95: 89 | C95: 重庆市总工会 | E95: 重庆市总工会 | F95: 行政政法处 | G95: 一级
A96: 135001 | B96: 90 | C96: 共青团重庆市委员会 | E96: 共青团重庆市委员会 | F96: 行政政法处 | G96: 一级
A97: 175001 | B97: 91 | C97: 重庆市妇女联合会 | E97: 重庆市妇女联合会 | F97: 行政政法处 | G97: 一级
A98: 255001 | B98: 92 | C98: 重庆市科学技术协会 | E98: 重庆市科学技术协会 | F98: 教科文处 | G98: 一级
A99: 267001 | B99: 93 | C99: 重庆市社会科学界联合会 | E99: 重庆市社会科学界联合会 | F99: 教科文处 | G99: 一级
A100: 144001 | B100: 94 | C100: 重庆市工商业联合会 | E100: 重庆市工商业联合会 | F100: 行政政法处 | G100: 一级
A101: 259001 | B101: 95 | C101: 重庆市文学艺术界联合会 | E101: 重庆市文学艺术界联合会 | F101: 教科文处 | G101: 一级
A102: 260001 | B102: 96 | C102: 重庆市作家协会 | E102: 重庆市作家协会 | F102: 教科文处 | G102: 一级
A103: 185001 | B103: 97 | C103: 重庆市归国华侨联合会 | E103: 重庆市归国华侨联合会 | F103: 行政政法处 | G103: 一级
A104: 333001 | B104: 98 | C104: 重庆市残疾人联合会 | E104: 重庆市残疾人联合会 | F104: 社保处 | G104: 一级
A105: 122001 | B105: 99 | C105: 中国国际贸易促进会重庆市委员会 | E105: 中国国际贸易促进会重庆市委员会 | F105: 产业发展处 | G105: 一级
A106: 136001 | B106: 100 | C106: 重庆市红十字会 | E106: 重庆市红十字会 | F106: 社保处 | G106: 一级
A107: 251001 | B107: 101 | C107: 中共重庆市委党校 | E107: 中共重庆市委党校 | F107: 教科文处 | G107: 一级
A108: 174001 | B108: 102 | C108: 中共重庆市委党史研究室 | E108: 中共重庆市委党史研究室 | F108: 行政政法处 | G108: 一级
A109: 268001 | B109: 103 | C109: 重庆市地方志办公室 | E109: 重庆市地方志办公室 | F109: 教科文处 | G109: 一级
A110: 258001 | B110: 104 | C110: 重庆市人民政府文史研究馆 | E110: 重庆市人民政府文史研究馆 | F110: 教科文处 | G110: 一级
A111: 252002 | B111: 105 | C111: 重庆社会主义学院 | E111: 重庆社会主义学院 | F111: 行政政法处 | G111: 一级
A112: 256001 | B112: 106 | C112: 重庆社会科学院 | E112: 重庆社会科学院 | F112: 教科文处 | G112: 一级
A113: 272001 | B113: 107 | C113: 重庆市科学技术研究院 | E113: 重庆市科学技术研究院 | F113: 教科文处 | G113: 一级
A114: 311001 | B114: 108 | C114: 重庆市农业科学院 | E114: 重庆市农业科学院 | F114: 农业处 | G114: 一级
A115: 312001 | B115: 109 | C115: 重庆市畜牧科学院 | E115: 重庆市畜牧科学院 | F115: 农业处 | G115: 一级
A116: 314001 | B116: 110 | C116: 重庆市水产科学研究所 | E116: 重庆市水产科学研究所 | F116: 农业处 | G116: 一级
A117: 371001 | B117: 111 | C117: 重庆市蚕业科学技术研究院 | E117: 重庆市蚕业科学技术研究院 | F117: 产业发展处 | G117: 一级
A118: 372001 | B118: 112 | C118: 重庆市蚕业管理总站 | E118: 重庆市蚕业管理总站 | F118: 产业发展处 | G118: 一级
A119: 415001 | B119: 113 | C119: 重庆市地质矿产勘查开发局 | E119: 重庆市地质矿产勘查开发局 | F119: 经建处 | G119: 一级
A120: 426001 | B120: 114 | C120: 重庆市地质矿产研究院 | E120: 重庆市地质矿产研究院 | F120: 经建处 | G120: 一级
A121: 412001 | B121: 115 | C121: 重庆一三六地质队 | E121: 重庆一三六地质队 | F121: 经建处 | G121: 一级
A122: 336001 | B122: 116 | C122: 重庆市老干部休养所 | E122: 重庆市老干部休养所 | F122: 社保处 | G122: 一级
A123: 474001 | B123: 117 | C123: 重庆市能源利用监测中心 | E123: 重庆市能源利用监测中心 | F123: 产业发展处 | G123: 一级
A124: 478001 | B124: 118 | C124: 重庆市工业设计促进中心 | E124: 重庆市工业设计促进中心 | F124: 产业发展处 | G124: 一级
A125: 370001 | B125: 119 | C125: 重庆市粮油质量监督检验站 | E125: 重庆市粮油质量监督检验站 | F125: 产业发展处 | G125: 一级
A126: 270004 | B126: 120 | C126: 重庆广播电视集团（总台） | E126: 重庆广播电视集团（总台） | F126: 教科文处 | G126: 一级
A127: 250005 | B127: 121 | C127: 西南政法大学 | E127: 西南政法大学 | F127: 教科文处 | G127: 二级单位
A128: 250006 | B128: 122 | C128: 重庆医科大学 | E128: 重庆医科大学 | F128: 教科文处 | G128: 二级单位
A129: 250007 | B129: 123 | C129: 重庆交通大学 | E129: 重庆交通大学 | F129: 教科文处 | G129: 二级单位
A130: 250008 | B130: 124 | C130: 重庆邮电大学 | E130: 重庆邮电大学 | F130: 教科文处 | G130: 二级单位
A131: 250009 | B131: 125 | C131: 重庆工商大学 | E131: 重庆工商大学 | F131: 教科文处 | G131: 二级单位
A132: 250010 | B132: 126 | C132: 重庆师范大学 | E132: 重庆师范大学 | F132: 教科文处 | G132: 二级单位
A133: 250011 | B133: 127 | C133: 四川美术学院 | E133: 四川美术学院 | F133: 教科文处 | G133: 二级单位
A134: 250012 | B134: 128 | C134: 四川外国语大学 | E134: 四川外国语大学 | F134: 教科文处 | G134: 二级单位
A135: 250013 | B135: 129 | C135: 重庆理工大学 | E135: 重庆理工大学 | F135: 教科文处 | G135: 二级单位
A136: 250014 | B136: 130 | C136: 重庆三峡学院 | E136: 重庆三峡学院 | F136: 教科文处 | G136: 二级单位
A137: 250015 | B137: 131 | C137: 重庆科技学院 | E137: 重庆科技学院 | F137: 教科文处 | G137: 二级单位
A138: 250016 | B138: 132 | C138: 重庆文理学院 | E138: 重庆文理学院 | F138: 教科文处 | G138: 二级单位
A139: 250017 | B139: 133 | C139: 长江师范学院 | E139: 长江师范学院 | F139: 教科文处 | G139: 二级单位
A140: 250018 | B140: 134 | C140: 重庆第二师范学院 | E140: 重庆第二师范学院 | F140: 教科文处 | G140: 二级单位
A141: 250019 | B141: 135 | C141: 重庆广播电视大学 | E141: 重庆广播电视大学 | F141: 教科文处 | G141: 二级单位
A142: 250021 | B142: 136 | C142: 重庆电子工程职业学院 | E142: 重庆电子工程职业学院 | F142: 教科文处 | G142: 二级单位
A143: 250048 | B143: 137 | C143: 重庆城市管理职业学院 | E143: 重庆城市管理职业学院 | F143: 教科文处 | G143: 二级单位
A144: 250050 | B144: 138 | C144: 重庆工业职业技术学院 | E144: 重庆工业职业技术学院 | F144: 教科文处 | G144: 二级单位
A145: 250051 | B145: 139 | C145: 重庆工程职业技术学院 | E145: 重庆工程职业技术学院 | F145: 教科文处 | G145: 二级单位
A146: 250053 | B146: 140 | C146: 重庆工贸职业技术学院 | E146: 重庆工贸职业技术学院 | F146: 教科文处 | G146: 二级单位
A147: 250054 | B147: 141 | C147: 重庆三峡医药高等专科学校 | E147: 重庆三峡医药高等专科学校 | F147: 教科文处 | G147: 二级单位
A148: 250055 | B148: 142 | C148: 重庆三峡职业学院 | E148: 重庆三峡职业学院 | F148: 教科文处 | G148: 二级单位
A149: 250057 | B149: 143 | C149: 重庆化工职业学院 | E149: 重庆化工职业学院 | F149: 教科文处 | G149: 二级单位
A150: 250058 | B150: 144 | C150: 重庆城市职业学院 | E150: 重庆城市职业学院 | F150: 教科文处 | G150: 二级单位
A151: 361001 | B151: 145 | C151: 重庆商务职业学院 | E151: 重庆商务职业学院 | F151: 产业发展处 | G151: 一级
A152: 362001 | B152: 146 | C152: 重庆财经职业学院 | E152: 重庆财经职业学院 | F152: 产业发展处 | G152: 一级
A153: 373001 | B153: 147 | C153: 重庆安全技术职业学院 | E153: 重庆安全技术职业学院 | F153: 产业发展处 | G153: 一级
A154: 470001 | B154: 148 | C154: 重庆电力高等专科学校 | E154: 重庆电力高等专科学校 | F154: 产业发展处 | G154: 一级
A155: 471001 | B155: 149 | C155: 重庆电力高级技工学校 | E155: 重庆电力高级技工学校 | F155: 产业发展处 | G155: 一级
A156: 363001 | B156: 150 | C156: 重庆市商务高级技工学校 | E156: 重庆市商务高级技工学校 | F156: 产业发展处 | G156: 一级
A157: 450001 | B157: 151 | C157: 重庆财政学校 | E157: 重庆财政学校 | F157: 教科文处 | G157: 一级
A158: 454001 | B158: 152 | C158: 重庆市轻工业学校 | E158: 重庆市轻工业学校 | F158: 产业发展处 | G158: 一级
A159: 455001 | B159: 153 | C159: 四川仪表工业学校 | E159: 四川仪表工业学校 | F159: 产业发展处 | G159: 一级
A160: 457001 | B160: 154 | C160: 重庆市工业学校 | E160: 重庆市工业学校 | F160: 产业发展处 | G160: 一级
A161: 459001 | B161: 155 | C161: 重庆建筑高级技工学校 | E161: 重庆建筑高级技工学校 | F161: 产业发展处 | G161: 一级
A162: 461001 | B162: 156 | C162: 重庆市机械高级技工学校 | E162: 重庆市机械高级技工学校 | F162: 产业发展处 | G162: 一级
A163: 463001 | B163: 157 | C163: 重庆市工贸高级技工学校 | E163: 重庆市工贸高级技工学校 | F163: 产业发展处 | G163: 一级
A164: 465001 | B164: 158 | C164: 重庆市工业高级技工学校 | E164: 重庆市工业高级技工学校 | F164: 产业发展处 | G164: 一级
A165: 466001 | B165: 159 | C165: 重庆建材技工学校 | E165: 重庆建材技工学校 | F165: 产业发展处 | G165: 一级
A166: 467001 | B166: 160 | C166: 重庆机械电子高级技工学校 | E166: 重庆机械电子高级技工学校 | F166: 产业发展处 | G166: 一级
A167: 469001 | B167: 161 | C167: 重庆市铁路运输高级技工学校 | E167: 重庆市铁路运输高级技工学校 | F167: 产业发展处 | G167: 一级
A168: 250059 | B168: 162 | C168: 重庆幼儿师范高等专科学校 | E168: 重庆幼儿师范高等专科学校 | F168: 教科文处 | G168: 二级单位
A169: 601001 | B169: 163 | C169: 重庆市渝中区人民法院 | E169: 重庆市渝中区人民法院 | F169: 行政政法处 | G169: 一级
A170: 602001 | B170: 164 | C170: 重庆市江北区人民法院 | E170: 重庆市江北区人民法院 | F170: 行政政法处 | G170: 一级
A171: 603001 | B171: 165 | C171: 重庆市沙坪坝区人民法院 | E171: 重庆市沙坪坝区人民法院 | F171: 行政政法处 | G171: 一级
A172: 604001 | B172: 166 | C172: 重庆市九龙坡区人民法院 | E172: 重庆市九龙坡区人民法院 | F172: 行政政法处 | G172: 一级
A173: 605001 | B173: 167 | C173: 重庆市大渡口区人民法院 | E173: 重庆市大渡口区人民法院 | F173: 行政政法处 | G173: 一级
A174: 606001 | B174: 168 | C174: 重庆市南岸区人民法院 | E174: 重庆市南岸区人民法院 | F174: 行政政法处 | G174: 一级
A175: 607001 | B175: 169 | C175: 重庆市北碚区人民法院 | E175: 重庆市北碚区人民法院 | F175: 行政政法处 | G175: 一级
A176: 608001 | B176: 170 | C176: 重庆市巴南区人民法院 | E176: 重庆市巴南区人民法院 | F176: 行政政法处 | G176: 一级
A177: 609001 | B177: 171 | C177: 重庆市渝北区人民法院 | E177: 重庆市渝北区人民法院 | F177: 行政政法处 | G177: 一级
A178: 610001 | B178: 172 | C178: 重庆市涪陵区人民法院 | E178: 重庆市涪陵区人民法院 | F178: 行政政法处 | G178: 一级
A179: 611001 | B179: 173 | C179: 重庆市长寿区人民法院 | E179: 重庆市长寿区人民法院 | F179: 行政政法处 | G179: 一级
A180: 612001 | B180: 174 | C180: 重庆市江津区人民法院 | E180: 重庆市江津区人民法院 | F180: 行政政法处 | G180: 一级
A181: 613001 | B181: 175 | C181: 重庆市合川区人民法院 | E181: 重庆市合川区人民法院 | F181: 行政政法处 | G181: 一级
A182: 614001 | B182: 176 | C182: 重庆市永川区人民法院 | E182: 重庆市永川区人民法院 | F182: 行政政法处 | G182: 一级
A183: 615001 | B183: 177 | C183: 重庆市南川区人民法院 | E183: 重庆市南川区人民法院 | F183: 行政政法处 | G183: 一级
A184: 616001 | B184: 178 | C184: 重庆市綦江区人民法院 | E184: 重庆市綦江区人民法院 | F184: 行政政法处 | G184: 一级
A185: 617001 | B185: 179 | C185: 重庆市潼南区人民法院 | E185: 重庆市潼南区人民法院 | F185: 行政政法处 | G185: 一级
A186: 618001 | B186: 180 | C186: 重庆市铜梁区人民法院 | E186: 重庆市铜梁区人民法院 | F186: 行政政法处 | G186: 一级
A187: 619001 | B187: 181 | C187: 重庆市大足区人民法院 | E187: 重庆市大足区人民法院 | F187: 行政政法处 | G187: 一级
A188: 620001 | B188: 182 | C188: 重庆市荣昌区人民法院 | E188: 重庆市荣昌区人民法院 | F188: 行政政法处 | G188: 一级
A189: 621001 | B189: 183 | C189: 重庆市璧山区人民法院 | E189: 重庆市璧山区人民法院 | F189: 行政政法处 | G189: 一级
A190: 622001 | B190: 184 | C190: 重庆市万州区人民法院 | E190: 重庆市万州区人民法院 | F190: 行政政法处 | G190: 一级
A191: 623001 | B191: 185 | C191: 梁平县人民法院 | E191: 梁平县人民法院 | F191: 行政政法处 | G191: 一级
A192: 624001 | B192: 186 | C192: 城口县人民法院 | E192: 城口县人民法院 | F192: 行政政法处 | G192: 一级
A193: 625001 | B193: 187 | C193: 丰都县人民法院 | E193: 丰都县人民法院 | F193: 行政政法处 | G193: 一级
A194: 626001 | B194: 188 | C194: 垫江县人民法院 | E194: 垫江县人民法院 | F194: 行政政法处 | G194: 一级
A195: 627001 | B195: 189 | C195: 忠县人民法院 | E195: 忠县人民法院 | F195: 行政政法处 | G195: 一级
A196: 628001 | B196: 190 | C196: 重庆市开州区人民法院 | E196: 重庆市开州区人民法院 | F196: 行政政法处 | G196: 一级
A197: 629001 | B197: 191 | C197: 云阳县人民法院 | E197: 云阳县人民法院 | F197: 行政政法处 | G197: 一级
A198: 630001 | B198: 192 | C198: 奉节县人民法院 | E198: 奉节县人民法院 | F198: 行政政法处 | G198: 一级
A199: 631001 | B199: 193 | C199: 巫山县人民法院 | E199: 巫山县人民法院 | F199: 行政政法处 | G199: 一级
A200: 632001 | B200: 194 | C200: 巫溪县人民法院 | E200: 巫溪县人民法院 | F200: 行政政法处 | G200: 一级
A201: 633001 | B201: 195 | C201: 重庆市黔江区人民法院 | E201: 重庆市黔江区人民法院 | F201: 行政政法处 | G201: 一级
A202: 634001 | B202: 196 | C202: 武隆县人民法院 | E202: 武隆县人民法院 | F202: 行政政法处 | G202: 一级
... 56 more rows

Sheet 1 财政拨款收支总表
A1: 表1
A2: 重庆市綦江区供销合作社联合社财政拨款收支总表
G4: 单位：万元
A5: 收入 | C5: 支出
A6: 项目 | B6: 预算数 | C6: 项目 | D6: 合计 | E6: 一般公共预算财政拨款 | F6: 政府性基金预算财政拨款 | G6: 国有资本经营预算财政拨款
A7: 一、本年收入 | B7: 790.69 | C7: 一、本年支出 | D7: =SUM(D8:D11) -> 942.37 | E7: 942.37
A8: 一般公共预算拨款 | B8: 790.69 | C8: 社会保障和就业支出 | D8: 85.61 | E8: 85.61
A9: 政府性基金预算拨款 | C9: 医疗卫生与计划生育支出 | D9: 24.25 | E9: 24.25
A10: 国有资本经营预算拨款 | C10: 商业服务业等支出 | D10: 813.75 | E10: 813.75
A11: 二、上年结转 | B11: 151.68 | C11: 住房保障支出 | D11: 18.76 | E11: 18.76
A12: 一般公共预算拨款 | B12: 151.68
A13: 政府性基金预算拨款
A14: 国有资本经营预算拨款
C16: 二、结转下年 | D16: =E16+F16+G16 -> 0.00 | E16: =B8+B12-E7 -> 0.00 | F16: =B9+B13-F7 -> 0.00 | G16: =B10+B14-G7 -> 0.00
A18: 收入总数 | B18: =B7+B11 -> 942.37 | C18: 支出总数 | D18: =SUM(D7+D16) -> 942.37 | E18: 942.37 | F18: 0.00 | G18: 0.00

Sheet 2 一般公共预算支出
A1: 表2
A2: 重庆市綦江区供销合作社联合社一般公共预算财政拨款支出预算表
E4: 单位：万元
A5: 功能分类科目 | C5: 2020年预算数
A6: 科目编码 | B6: 科目名称 | C6: 小计 | D6: 基本支出 | E6: 项目支出
A7: 208 | B7: 社会保障和就业支出 | C7: =SUM(D7:E7) -> 85.61 | D7: =D8 -> 79.07 | E7: =E12 -> 6.54
A8: 20805 | B8: 行政事业单位离退休 | C8: =SUM(C9:C11) -> 79.07 | D8: =D9+D10+D11 -> 79.07
A9: 2080505 | B9: 机关事业单位基本养老保险缴费支出 | C9: =D9 -> 25.01 | D9: 25.01
A10: 2080506 | B10: 机关事业单位职业年金缴费支出 | C10: 12.51 | D10: 12.51
A11: 2080599 | B11: 其他行政事业单位离退休支出 | C11: 41.55 | D11: 41.55
A12: 20808 | B12: 抚恤 | C12: =E12 -> 6.54 | E12: =E13 -> 6.54
A13: 2080899 | B13: 其他优抚支出 | C13: =E13 -> 6.54 | E13: 6.54
A14: 210 | B14: 医疗卫生与计划生育支出 | C14: =D14 -> 24.25 | D14: =D15 -> 24.25
A15: 21011 | B15: 行政事业单位医疗 | C15: 24.25 | D15: =SUM(D16:D17) -> 24.25
A16: 2101101 | B16: 行政单位医疗 | C16: 16.93 | D16: 16.93
A17: 2101103 | B17: 公务员医疗补助 | C17: 7.32 | D17: 7.32
A18: 216 | B18: 商业服务业等支出 | C18: =SUM(D18:E18) -> 662.07 | D18: =D19 -> 297.37 | E18: =E21 -> 364.7
A19: 21602 | B19: 商业流通事务 | C19: =D19 -> 297.37 | D19: =D20 -> 297.37
A20: 2160201 | B20: 行政运行 | C20: 297.37 | D20: 297.37
A21: 2160202 | B21: 一般行政管理事务 | C21: =E21 -> 364.7 | E21: 364.7
A22: 221 | B22: 住房保障支出 | C22: =D22 -> 18.76 | D22: =D24 -> 18.76
A23: 22102 | B23: 住房改革支出 | C23: =D23 -> 18.76 | D23: =D24 -> 18.76
A24: 2210201 | B24: 住房公积金 | C24: =D24 -> 18.76 | D24: 18.76
A25: 总合计 | C25: =C7+C14+C18+C22 -> 790.69 | D25: =D7+D14+D18+D22 -> 419.45 | E25: =E7+E18 -> 371.24
A26: 备注：本表反映2020年当年一般公共预算财政拨款支出情况。

Sheet 3 一般公共预算财政基本支出
A1: 表3
A2: 重庆市綦江区供销合作社联合社一般公共预算财政拨款基本支出预算表
E4: 单位：万元
A5: 经济分类科目 | C5: 2020年基本支出
A6: 科目编码 | B6: 科目名称 | C6: 合计 | D6: 人员经费 | E6: 公用经费
B7: 合计 | C7: =SUM(C8,C19,C33) -> 419.45 | D7: =SUM(D8,D19,D33) -> 347.78 | E7: =SUM(E8,E19,E33) -> 71.67
A8: 301 | B8: 工资福利支出 | C8: =SUM(C9:C18) -> 300.60 | D8: =SUM(D9:D18) -> 300.60
A9: 30101 | B9: 基本工资 | C9: 84.34 | D9: 84.34
A10: 30102 | B10: 津贴补贴 | C10: 60.20 | D10: 60.20
A11: 30103 | B11: 奖金 | C11: 52.60 | D11: 52.60
A12: 30108 | B12: 机关事业单位基本养老保险缴费 | C12: 25.01 | D12: 25.01
A13: 30109 | B13: 职业年金缴费 | C13: 12.51 | D13: 12.51
A14: 30110 | B14: 职工基本医疗保险缴费 | C14: 14.85 | D14: 14.85
A15: 30112 | B15: 其他社会保障缴费 | C15: 1.25 | D15: 1.25
A16: 30113 | B16: 住房公积金 | C16: 18.76 | D16: 18.76
A17: 30114 | B17: 医疗费 | C17: 2.72 | D17: 2.72
A18: 30199 | B18: 其他工资福利支出 | C18: 28.36 | D18: 28.36
A19: 302 | B19: 商品和服务支出 | C19: =SUM(C20:C32) -> 71.67 | E19: =SUM(E20:E32) -> 71.67
A20: 30201 | B20: 办公费 | C20: 1.53 | E20: 1.53
A21: 30205 | B21: 水费 | C21: 0.12 | E21: 0.12
A22: 30206 | B22: 电费 | C22: 1.30 | E22: 1.30
A23: 30207 | B23: 邮电费 | C23: 6.46 | E23: 6.46
A24: 30211 | B24: 国内差旅费 | C24: 30.60 | E24: 30.60
A25: 30215 | B25: 会议费 | C25: 1.19 | E25: 1.19
A26: 30216 | B26: 培训费 | C26: 2.17 | E26: 2.17
A27: 30217 | B27: 公务接待费 | C27: 2.18 | E27: 2.18
A28: 30228 | B28: 工会经费 | C28: 2.89 | E28: 2.89
A29: 30229 | B29: 福利费 | C29: 2.53 | E29: 2.53
A30: 30231 | B30: 公务用车运行维护费 | C30: 3.50 | E30: 3.50
A31: 30239 | B31: 其他交通费用 | C31: 14.98 | E31: 14.98
A32: 30299 | B32: 其他商品和服务支出 | C32: 2.22 | E32: 2.22
A33: 303 | B33: 对个人和家庭的补助 | C33: =SUM(C34:C37) -> 47.18 | D33: =SUM(D34:D37) -> 47.18
A34: 30305 | B34: 生活补助 | C34: 1.16 | D34: 1.16
A35: 30307 | B35: 医疗费 | C35: 6.68 | D35: 6.68
A36: 30309 | B36: 奖励金 | C36: 0.01 | D36: 0.01
A37: 30399 | B37: 其他对个人和家庭的补助支出 | C37: 39.33 | D37: 39.33

Sheet 4 一般公用预算“三公”经费支出表
A1: 表4
A2: 重庆市綦江区供销合作社联合社一般公共预算“三公”经费支出表
G4: 单位：万元
A5: 2020年预算数
A6: 合计 | B6: 因公出国（境）费 | C6: 公务用车购置及运行费 | F6: 公务接待费
C7: 小计 | D7: 公务用车购置费 | E7: 公务用车运行费
A8: 5.68 | C8: 3.50 | E8: 3.50 | F8: 2.18

Sheet 5 政府性基金预算支出表
A1: 表5
A2: 重庆市綦江区供销合作社联合社政府性基金预算支出表
E4: 单位：万元
A5: 科目编码 | B5: 科目名称 | C5: 本年政府性基金预算财政拨款支出
C6: 合计 | D6: 基本支出 | E6: 项目支出
A8: （备注：本单位无政府性基金收支，故此表无数据。）

Sheet 6 部门收支总表
A1: 表6
A2: 重庆市綦江区供销合作社联合社部门收支总表
D4: 单位：万元
A5: 收入 | C5: 支出
A6: 项目 | B6: 预算数 | C6: 项目 | D6: 预算数
A7: 一般公共预算拨款收入 | B7: 790.69 | C7: 一般公共服务支出
A8: 政府性基金预算拨款收入 | C8: 外交支出
A9: 国有资本经营预算拨款收入 | C9: 国防支出
A10: 事业收入预算 | C10: 公共安全支出
A11: 事业单位经营收入预算 | C11: 教育支出
A12: 其他收入预算 | C12: 社会保障和就业支出 | D12: 85.61
C13: 医疗卫生与计划生育支出 | D13: 24.25
C14: 交通运输支出
C15: 资源勘探信息等支出
C16: 商业服务业等支出 | D16: 813.75
C17: 住房保障支出 | D17: 18.76
C18: 其他支出
A20: 本年收入合计 | B20: =SUM(B7:B17) -> 790.69 | C20: 本年支出合计 | D20: =SUM(D12:D17) -> 942.37
A21: 用事业基金弥补收支差额 | C21: 结转下年 | D21: =B23-D20 -> 0.00
A22: 上年结转 | B22: 151.68
A23: 收入总计 | B23: =B20+B22 -> 942.37 | C23: 支出总计 | D23: =D20+D21 -> 942.37

Sheet 7 部门收入总表
A1: 表7
A2: 重庆市綦江区供销合作社联合社部门收入总表
L4: 单位：万元
A5: 科目 | C5: 合计 | D5: 上年结转 | E5: 一般公共预算拨款收入 | F5: 政府性基金预算拨款收入 | G5: 国有资本经营预算拨款收入 | H5: 事业收入预算 | J5: 事业单位经营收入预算 | K5: 其他收入预算 | L5: 用事业基金弥补收支差额
A6: 科目编码 | B6: 科目名称 | H6: 非教育收费收入预算 | I6: 教育收费收预算入
A7: 208 | B7: 社会保障和就业支出 | C7: =SUM(D7:L7) -> 85.61 | E7: =E8+E12 -> 85.61
A8: 20805 | B8: 行政事业单位离退休 | C8: 79.07 | E8: =E9+E10+E11 -> 79.07
A9: 2080505 | B9: 机关事业单位基本养老保险缴费支出 | C9: 25.01 | E9: 25.01
A10: 2080506 | B10: 机关事业单位职业年金缴费支出 | C10: 12.51 | E10: 12.51
A11: 2080599 | B11: 其他行政事业单位离退休支出 | C11: 41.55 | E11: 41.55
A12: 20808 | B12: 抚恤 | C12: 6.54 | E12: =E13 -> 6.54
A13: 2080899 | B13: 其他优抚支出 | C13: 6.54 | E13: 6.54
A14: 210 | B14: 医疗卫生与计划生育支出 | C14: 24.25 | E14: 24.25
A15: 21011 | B15: 行政事业单位医疗 | C15: 24.25 | E15: =E16+E17 -> 24.25
A16: 2101101 | B16: 行政单位医疗 | C16: 16.93 | E16: 16.93
A17: 2101103 | B17: 公务员医疗补助 | C17: 7.32 | E17: 7.32
A18: 213 | B18: 农林水支出 | C18: 149.00 | D18: 149.00
A19: 21301 | B19: 农业 | C19: 149.00 | D19: 149.00
A20: 2130124 | B20: 农业组织与产业化经营 | C20: 149.00 | D20: 149.00
A21: 216 | B21: 商业服务业等支出 | C21: 664.75 | D21: 2.68 | E21: 662.07
A22: 21602 | B22: 商业流通事务 | C22: 664.75 | D22: 2.68 | E22: =E23+E24 -> 662.07
A23: 2160201 | B23: 行政运行 | C23: 297.37 | E23: 297.37
A24: 2160202 | B24: 一般行政管理事务 | C24: 367.38 | D24: 2.68 | E24: 364.7
A25: 2160299 | B25: 其他商业流通事务支出 | C25: 0.00
A26: 221 | B26: 住房保障支出 | C26: 18.76 | E26: 18.76
A27: 22102 | B27: 住房改革支出 | C27: 18.76 | E27: 18.76
A28: 2210201 | B28: 住房公积金 | C28: 18.76 | E28: 18.76
A29: 总合计 | C29: =C7+C14+C18+C21+C26 -> 942.37 | D29: =D7+D14+D18+D21+D26 -> 151.68 | E29: =E7+E14+E18+E21+E26 -> 790.69

Sheet 8 部门支出总表
A1: 表8
A2: 重庆市綦江区供销合作社联合社部门支出总表
H4: 单位：万元
A5: 科目编码 | B5: 科目名称 | C5: 合计 | D5: 基本支出 | E5: 项目支出 | F5: 上缴上级支出 | G5: 事业单位经营支出 | H5: 对下级单位补助支出
A6: 208 | B6: 社会保障和就业支出 | C6: =SUM(D6:H6) -> 85.61 | D6: 79.07 | E6: 6.54
A7: 20805 | B7: 行政事业单位离退休 | C7: 79.07 | D7: 79.07
A8: 2080505 | B8: 机关事业单位基本养老保险缴费支出 | C8: 25.01 | D8: 25.01
A9: 2080506 | B9: 机关事业单位职业年金缴费支出 | C9: 12.51 | D9: 12.51
A10: 2080599 | B10: 其他行政事业单位离退休支出 | C10: 41.55 | D10: 41.55
A11: 20808 | B11: 抚恤 | C11: 6.54 | E11: 6.54
A12: 2080899 | B12: 其他优抚支出 | C12: 6.54 | E12: 6.54
A13: 210 | B13: 医疗卫生与计划生育支出 | C13: =D13 -> 24.25 | D13: =D14 -> 24.25
A14: 21011 | B14: 行政事业单位医疗 | C14: 24.25 | D14: =SUM(D15:D16) -> 24.25
A15: 2101101 | B15: 行政单位医疗 | C15: 16.93 | D15: 16.93
A16: 2101103 | B16: 公务员医疗补助 | C16: 7.32 | D16: 7.32
A17: 213 | B17: 农林水支出 | C17: =SUM(D17:H17) -> 149.00 | E17: 149.00
A18: 21301 | B18: 农业 | C18: 149.00 | E18: 149.00
A19: 2130124 | B19: 农业组织与产业化经营 | C19: 149.00 | E19: 149.00
A20: 216 | B20: 商业服务业等支出 | C20: 664.75 | D20: 297.37 | E20: 367.38
A21: 21602 | B21: 商业流通事务 | C21: 664.75 | D21: 297.37 | E21: 367.38
A22: 2160201 | B22: 行政运行 | C22: 297.37 | D22: 297.37
A23: 2160202 | B23: 一般行政管理事务 | C23: 367.38 | E23: 367.38
A24: 2160299 | B24: 其他商业流通事务支出 | C24: 0.00
A25: 221 | B25: 住房保障支出 | C25: 18.76 | D25: 18.76
A26: 22102 | B26: 住房改革支出 | C26: 18.76 | D26: 18.76
A27: 2210201 | B27: 住房公积金 | C27: 18.76 | D27: 18.76
A28: 总合计 | C28: 942.37 | D28: =D6+D13+D17+D20+D25 -> 419.45 | E28: =E6+E13+E17+E20+E25 -> 522.92

Sheet 9 政府采购明细表
A1: 表9
A2: 重庆市綦江区供销合作社联合社政府采购预算明细表
K3: 单位：万元
A4: 项目 | B4: 合计 | C4: 上年结转 | D4: 一般公共预算拨款收入 | E4: 政府性基金预算拨款收入 | F4: 国有资本经营预算拨款收入 | G4: 事业收入预算 | I4: 事业单位经营收入预算 | J4: 其他收入预算 | K4: 用事业基金弥补收支差额
G5: 非教育收费收入预算 | H5: 教育收费收入预算
A6: 合计 | B6: 0.5 | D6: 0.5
A7: 货物类 | B7: 0.5 | D7: 0.5
A8: 服务类
A9: 工程类

Sheet 绩效表一
A2: 2020年綦江区供销社整体绩效目标表
A3: 部门(单位)名称 | B3: 綦江区供销社 | D3: 预算支出总量（万元） | E3: 790.69
A4: 当年整体绩效目标 | B4: 发挥好供销社服务优势、农民专业合作社生产优势、信用社金融优势，持续推动“三社”多种形式联合合作；建成20个街镇及其部份使用的废弃农膜回收网点，完成市供销合作总社下达的废弃农膜回收任务225吨，全区废弃农膜回收率达到80%以上；全区木瓜示范片面积力争达到2000亩，全区鲜木瓜产量2800吨，换种新增150亩，新建烘房两个。
A5: 绩效指标 | B5: 指标 | C5: 指标权重 | D5: 计量单位 | E5: 指标值
B6: 购买经营设施 | C6: 30% | D6: 个 | E6: ≥1
B7: 完成废弃农膜回收任务 | C7: 25% | D7: 吨 | E7: ≥225
B8: 完成新建回收网点任务 | C8: 10% | D8: 个 | E8: ≥4
B9: 木瓜示范片管护面积 | C9: 15% | D9: 亩 | E9: ≥2000
B10: 鲜木瓜产量 | C10: 10% | D10: 吨 | E10: ≥2800
B11: 农民满意度 | C11: 10% | D11: % | E11: ≥95%

Sheet 绩效表二
A2: 2020年区级重点专项资金绩效目标表
A3: 编制单位： | B3: 綦江区供销社 | F3: 单位：万元
A4: 专项资金名称 | B4: “三社”融合发展 | E4: 业务主管部门 | F4: 区供销社
A5: 2020年预算 | B5: 160
A7: 项目概况 | B7: 以财政补助资金参股投资基层社、农民专业合作社，提升供销社为农服务能力，密切与农民利益联结，缓解农民合作社融资难、融资贵问题以及发展资金短缺问题，增强合作社的凝聚力，并注重吸收贫困户加入合作社，帮助脱贫致富。发挥供销社的系统资源优势，为合作社提供农资供应、购销信息、产品推介、拓展销路、财务代帐、政务事务等综合服务。
A8: 立项依据 | B8: 《中共重庆市委办公厅、重庆市人民政府办公厅印发印发〈重庆市綦江区关于推进“三社”融合发展的实施意见（试行）〉的通知》（渝委办发〔2018〕67号）、《中共重庆市綦江区委办公室、重庆市綦江区人民政府办公室关于印发〈重庆市綦江区关于推进“三社”融合发展的实施意见（试行）〉的通知》（綦江委办发〔2019〕47号）要求以提升为农服务能力为根本，以提高农民组织化程度为重点，以联合与合作为纽带，密切与农民利益联接。
A9: 项目当年绩效目标 | B9: 发挥好供销社服务优势、农民专业合作社生产优势、信用社金融优势，推动“三社”多种形式联合合作，实现风险共担、利益共享。密切与农民的利益联结，不断增强农民群众的获得感。在实施乡村振兴战略和打赢打好脱贫攻坚战，巩固基层政权建设方面发挥积极作用。
A10: 绩效指标 | B10: 指标 | C10: 指标权重 | D10: 计量单位 | E10: 指标值
B11: 参股一个以上专业合作社 | C11: 25.00% | D11: 个 | E11: ≥1
B12: 参股一个以上基层供销社 | C12: 25.00% | D12: 个 | E12: ≥1
B13: 购买经营设施 | C13: 40.00% | D13: 个 | E13: ≥1
B14: 农民满意度 | C14: 10.00% | D14: % | E14: ≥95%

Sheet 绩效表三
A2: 2020年区级重点专项资金绩效目标表
A3: 编制单位： | B3: 綦江区供销社 | F3: 单位：万元
A4: 专项资金名称 | B4: 废弃农膜回收加工 | E4: 业务主管部门 | F4: 区供销社
A5: 2020年预算 | B5: 50
A7: 项目概况 | B7: 根据《中华人民共和国土壤污染防治法》、《重庆市污染防治攻坚战实施方案（2018—2020年）》（渝委办发〔2018〕35号）、《重庆市人民政府办公厅关于印发重庆市废弃农膜回收利用管理办法（试行）的通知》（渝府办发〔2019〕57号）、《中共重庆市綦江区委、重庆市綦江区人民政府关于印发〈重庆市綦江区污染防治攻坚战实施方案（2018-2020年）〉的通知》（綦江委发〔2018〕19号），结合我区实际，开展我区废弃农膜回收利用工作。为此，区供销社所属重庆市合民鑫再生资源有限公司建设年加工废弃农膜3000吨的生产线一条，建设占在2800平方米的分拣中心，进一步解决我区废弃农膜对农村生态造成的面源污染。
A8: 立项依据 | B8: 2020年，市委市政府将废弃农膜回收工作纳入对区委区政府的考核事项。
A9: 项目当年绩效目标 | B9: 2020年，我区将建成20个街镇及其部份使用的废弃农膜回收网点，覆盖所有街镇；完成市供销合作总社下达的废弃农膜回收任务225吨，全区废弃农膜回收率达到80%以上。
A10: 绩效指标 | B10: 指标 | C10: 指标权重 | D10: 计量单位 | E10: 指标值
B11: 宣传资料、标语（份） | C11: 10% | D11: 份 | E11: ≥5000
B12: 宣传培训会议（次） | C12: 10% | D12: 次 | E12: ≥2
B13: 完成废弃农膜回收任务 | C13: 60% | D13: 吨 | E13: ≥225
B14: 完成新建回收网点任务 | C14: 20% | D14: 个 | E14: ≥4

Sheet 绩效表四
A1: 2020年区级重点专项资金绩效目标表
A2: 编制单位： | B2: 綦江区供销社 | F2: 单位：万元
A3: 项目名称 | B3: 木瓜管护及销售 | D3: 业务主管部门 | E3: 区供销社
A4: 本年预算金额 | B4: 90
A6: 项目概况 | B6: 綦江木瓜已有百年发展历史，近年来，全区木瓜产业以管护为抓手，着力拓展销路，产业实现持续向好发展。为进一步做大做强木瓜产业，提升木瓜产业附加值，实现助农增收，由区供销社组织实施綦江区2020年木瓜管护及销售项目。一是木瓜生产管护。通过开展木瓜示范片标准化管护，带动全区瓜农生产管护积极性。为示范片木瓜基地提供春夏、冬季管护补助，组织开展木瓜管护、初加工技术培训，提升管护水平，提高木瓜产量和质量。二是木瓜市场销售。通过积极拓展区内外市场，通过对接河北安国、安徽亳州、成都荷花池等全国性中药材市场，依托区内外木瓜深加工及中药材企业等渠道，解决木瓜销售难题。通过示范带动，全区基本形成覆盖全过程的产销一体化服务体系，木瓜产业附加值进一步提升。三是新增换种150亩，新建烘房两个。 该项目的实施，能有效提升綦江木瓜的知名度，经济效益和社会效益显著，实现助农增收，助推产业稳定持续健康发展。
A7: 立项依据 | B7: 2015年全区农业农村工作会上，区政府副区长蒲德洪指示将全区木瓜生产管护及销售职能划归区供销社。从2015年至今，由区供销社负责并实施全区木瓜管护及销售工作。
A8: 项目当年绩效目标 | B8: 到2020年底，全区木瓜示范片面积力争达到2000亩，全区鲜木瓜产量2800吨；换种新增150亩，新建烘房两个；全年开展技术培训160人次以上，木瓜病虫害防治率85%以上；木瓜春夏管护5月底前完成，冬季管护12月底前完成；木瓜产值850万元以上，瓜农亩产收入900元以上，瓜农服务满意度95%以上。
A9: 绩效指标 | B9: 指标 | C9: 指标权重 | D9: 计量单位 | E9: 指标值
B10: 木瓜示范片管护面积 | C10: 30% | D10: 亩 | E10: ≥2000
B11: 鲜木瓜产量 | C11: 25% | D11: 吨 | E11: ≥2800
B12: 病虫害防治率 | C12: 10% | D12: % | E12: ≥85%
B13: 开展技术培训人数 | C13: 5% | D13: 人次 | E13: ≥160
B14: 完成春夏管护 | C14: 10% | D14: 月 | E14: 2020年5月底前
B15: 完成冬季管护 | C15: 10% | D15: 月 | E15: 2020年12月底前
B16: 瓜农满意度 | C16: 10% | D16: % | E16: ≥95%
